fUSD/lending_fUSD_20251211
["ID","MTS","AMOUNT","RATE_DAILY","PERIOD"]
[398240889,1765446638660,-720.6999372,0.000169,2]
[398240890,1765446638669,-151.84,0.000169,2]
[398240891,1765446638680,-1519.92258716,0.00016906,2]
[398240892,1765446638689,-194.29205466,0.00016906,2]
[398240893,1765446638699,-956.5187017,0.00016906,2]
[398240894,1765446638710,-1628.91162981,0.0001692,2]
[398240895,1765446638719,-500.0,0.00016973,2]
[398240896,1765446638729,-500.0,0.00016973,2]
[398240897,1765446638738,-500.0,0.00016973,2]
[398240898,1765446638748,-500.0,0.00016973,2]
[398240900,1765446638757,-500.0,0.00016973,2]
[398240902,1765446638767,-500.0,0.00016973,2]
[398240904,1765446638779,-500.0,0.00016973,2]
[398240906,1765446638788,-500.0,0.00016973,2]
[398240908,1765446638798,-500.0,0.00016973,2]
[398240910,1765446638808,-500.0,0.00016973,2]
[398240912,1765446638818,-500.0,0.00016973,2]
[398240914,1765446638827,-528.0,0.00016974,2]
[398240916,1765446638838,-150.0,0.00016986,2]
[398240918,1765446638848,-151.0,0.00016997,2]
[398240920,1765446638859,-829.14,0.00016998,2]
[398240922,1765446638869,-152.48,0.00016999,2]
[398240924,1765446638879,-152.79,0.00016999,2]
[398240925,1765446638890,-348.37621948,0.00016999,2]
[398240926,1765446638900,-604.78089066,0.00016999,2]
[398240927,1765446638914,-829.14,0.00016999,2]
[398240928,1765446638924,-829.14,0.00016999,2]
[398240929,1765446638934,-829.14,0.00016999,2]
[398240930,1765446638943,-829.14,0.00016999,2]
[398240931,1765446638955,-829.14,0.00016999,2]
[398240932,1765446638965,-829.14,0.00016999,2]
[398240933,1765446638975,-829.14,0.00016999,2]
[398240934,1765446638987,-829.14,0.00016999,2]
[398240935,1765446638996,-829.14,0.00016999,2]
[398240936,1765446639005,-829.14,0.00016999,2]
[398240937,1765446639015,-74841.3354178,0.00017,2]
[398240938,1765446639035,-1443.45977058,0.00017,2]
[398240939,1765446639051,-30868.43746983,0.00017,2]
[398240940,1765446639959,-644.20590704,0.00017,2]
[398240941,1765446639970,-500.3348243,0.00017,2]
[398240942,1765446640012,-2038.3362421,0.00017,2]
[398240943,1765446640120,-10250.8,0.00017,2]
[398240944,1765446640131,-1375.598704,0.00017,2]
[398240945,1765446640142,-3828.86735665,0.00017,2]
[398240946,1765446640153,-3973.09260376,0.00017,2]
[398240947,1765446640173,-504.8250025,0.00017,2]
[398240948,1765446640184,-1759.8369796,0.00017,2]
[398240964,1765446642997,-3524.0,0.00017,2]
[398240965,1765446643009,-9623.84486973,0.00017,2]
[398240966,1765446643051,-17908.00896982,0.00017,2]
[398240972,1765446645818,-2128.79801935,0.00016438,2]
[398240973,1765446645872,-1203.12010318,0.00016438,2]
[398240974,1765446645928,-459.58986104,0.00016438,2]
[398240975,1765446645939,-470.22347517,0.00016438,2]
[398240976,1765446646086,-203.41854126,0.00016438,2]
[398240977,1765446646096,-500.0,0.00016729,2]
[398240978,1765446646105,-500.0,0.00016729,2]
[398240979,1765446646114,-258.35573364,0.00016729,2]
[398240980,1765446646123,-500.0,0.00016729,2]
[398240981,1765446646132,-207.39065306,0.00016729,2]
[398241000,1765446662974,250.0,0.0001619,2]
[398241030,1765446866138,385.82,0.00016046,2]
[398241031,1765446902395,152.54,8.014e-05,2]
[398241032,1765446902600,152.54,8.682e-05,2]
[398241034,1765446903206,152.54,9.35e-05,2]
[398241036,1765446903248,152.54,0.00010018,2]
[398241037,1765446903446,152.54,0.00010685,2]
[398241038,1765446903640,152.54,0.00011353,2]
[398241039,1765446903886,152.54,0.00012021,2]
[398241040,1765446904292,152.54,0.00012689,2]
[398241041,1765446904492,152.54,0.00013357,2]
[398241042,1765446904714,152.54,0.00014025,2]
[398241043,1765446904913,152.54,0.00014692,2]
[398241044,1765446905124,152.54,0.0001536,2]
[398241047,1765446905356,152.54,0.00016028,2]
[398241052,1765446938540,324.13,0.00013699,2]
[398241055,1765447020253,500.0,0.00016194,2]
[398241118,1765447130189,-1523.08,0.00016262,2]
[398241119,1765447130210,-300.0,0.00016266,2]
[398241120,1765447130232,-195.0,0.00016269,2]
[398241121,1765447130252,-150.48027203,0.00016276,2]
[398241122,1765447130273,-356.09951251,0.00016309,2]
[398241123,1765447130297,-300.0,0.00016312,2]
[398241124,1765447130319,-1200.0,0.00016375,2]
[398241125,1765447130340,-7229.41,0.00016376,2]
[398241126,1765447130361,-150.48027203,0.00016409,2]
[398241127,1765447135189,14530.8,0.00015875,2]
[398241146,1765447191879,4064.64994343,0.00016171,2]
[398241147,1765447191901,9570.12005657,0.00016171,2]
[398241148,1765447247268,250.0,0.0001607,2]
[398241149,1765447428747,999.0,0.00015929,3]
[398241150,1765447456294,2751.0,0.00015954,2]
[398241151,1765447486949,1542.0,0.00015928,2]
[398241152,1765447509299,150.0,0.00015288,2]
[398241153,1765447509394,150.0,0.00015288,2]
[398241154,1765447509510,150.0,0.00015288,2]
[398241155,1765447516325,150.0,0.00015288,2]
[398241156,1765447516359,150.0,0.00016137,2]
[398241157,1765447516645,151.17525831,0.00015288,2]
[398241158,1765447528310,150.0,0.00015288,2]
[398241159,1765447530017,150.0,0.00015288,2]
[398241160,1765447567795,3506.83474169,0.0001594,2]
[398241161,1765447567819,10000.01,0.0001594,2]
[398241162,1765447567842,4395.15525831,0.0001594,2]
[398241163,1765447621920,250.0,0.0001619,2]
[398241164,1765447741689,1000.0,0.00015928,3]
[398241172,1765447832056,-229.33148918,0.00016198,2]
[398241173,1765447832066,-300.0,0.00016201,2]
[398241174,1765447832075,-250.0,0.00016205,2]
[398241175,1765447832085,-195.0,0.00016211,2]
[398241176,1765447832095,-306.84057565,0.00016224,2]
[398241177,1765447832115,-271.36866743,0.00016224,2]
[398241178,1765447832124,-300.0,0.00016224,2]
[398241179,1765447832134,-3555.48,0.00016224,2]
[398241180,1765447832144,-195.0,0.00016234,2]
[398241181,1765447832154,-218.70389019,0.00016409,2]
[398241182,1765447832164,-550.0,0.00016629,2]
[398241183,1765447832174,-300.0,0.00016629,2]
[398241184,1765447832184,-202.01177245,0.0001663,2]
[398241185,1765447832193,-2797.13156231,0.0001663,2]
[398241186,1765447832203,-7309.97956916,0.0001663,2]
[398241187,1765447832216,-531.66719386,0.0001663,2]
[398241188,1765447832228,-2158.36323698,0.0001663,2]
[398241189,1765447832238,-281.2726,0.0001663,2]
[398241190,1765447832248,-589.6468,0.0001663,2]
[398241191,1765447832258,-6680.3459,0.0001663,2]
[398241192,1765447832267,-11362.16109751,0.0001663,2]
[398241193,1765447832279,-1200.0,0.0001663,2]
[398241194,1765447832315,-6099.9999999,0.0001663,2]
[398241196,1765447832327,-5880.0,0.0001663,2]
[398241199,1765447832339,-1300.0,0.0001663,2]
[398241212,1765447840320,-500.0,0.00016629,2]
[398241213,1765447840330,-25.02110559,0.00016629,2]
[398241214,1765447840495,-490.9898417,0.00016629,2]
[398241215,1765447840506,-356.14363291,0.00016629,2]
[398241216,1765447840517,-151.86652539,0.00016629,2]
[398241217,1765447840530,-348.13347461,0.00016629,2]
[398241218,1765447840540,-601.26574748,0.00016629,2]
[398241219,1765447840551,-179.35656801,0.00016629,2]
[398241220,1765447840561,-72.22013169,0.00016629,2]
[398241225,1765447843420,-126.25474772,0.00016629,2]
[398241226,1765447843434,-156.1088056,0.00016629,2]
[398241230,1765447846094,-343.8911944,0.00016629,2]
[398241231,1765447846103,-106.1088057,0.00016629,2]
[398241232,1765447846115,-393.8911943,0.00016629,2]
[398241233,1765447846124,-500.0,0.00016629,2]
[398241234,1765447846133,-500.0,0.00016629,2]
[398241235,1765447846142,-604.82008074,0.00016629,2]
[398241236,1765447846150,-500.0,0.00016629,2]
[398241237,1765447846160,-500.0,0.00016629,2]
[398241238,1765447846170,-500.0,0.00016629,2]
[398241239,1765447846179,-500.0,0.00016629,2]
[398241240,1765447846188,-500.0,0.00016629,2]
[398241241,1765447846196,-500.0,0.00016629,2]
[398241242,1765447846206,-500.0,0.00016629,2]
[398241243,1765447846215,-500.0,0.00016629,2]
[398241244,1765447846224,-500.0,0.00016629,2]
[398241245,1765447846233,-500.0,0.00016629,2]
[398241246,1765447846242,-500.0,0.00016629,2]
[398241247,1765447846251,-500.0,0.00016629,2]
[398241248,1765447846260,-158.56657202,0.00016629,2]
[398241249,1765447846268,-500.0,0.00016629,2]
[398241250,1765447846277,-500.0,0.00016629,2]
[398241251,1765447846287,-500.0,0.00016629,2]
[398241252,1765447846296,-500.0,0.00016629,2]
[398241253,1765447846305,-500.0,0.00016629,2]
[398241254,1765447846314,-500.0,0.00016629,2]
[398241255,1765447846323,-461.95683558,0.00016629,2]
[398241257,1765447936805,2083.74,0.00016055,2]
[398241260,1765448048056,-165.13351929,0.00015919,2]
[398241265,1765448141681,706.88,0.00015832,2]
[398241267,1765448277102,1000.0,0.00015866,2]
[398241272,1765448310579,-34.86648071,0.00015919,2]
[398241273,1765448353383,9930.27703858,0.00015824,2]
[398241274,1765448353410,3115.43296142,0.00015824,2]
[398241290,1765448522606,250.0,0.0001591,2]
[398241307,1765448708386,150.0,0.00015288,2]
[398241310,1765448729769,150.0,0.00015288,2]
[398241314,1765448737270,150.0,0.00015596,2]
[398241315,1765448738020,-204.97585824,0.00015961,2]
[398241334,1765448948070,-368.64197213,0.00015927,3]
[398241335,1765448951178,-360.8100472,0.00015927,3]
[398241336,1765448954363,-227.08952111,0.00015927,3]
[398241339,1765448993037,-188.28527227,0.00015919,2]
[398241348,1765449032122,-16.69058597,0.00015919,2]
[398241350,1765449032136,-43.45845956,0.00015927,3]
[398241356,1765449032383,-300.0,0.00015987,2]
[398241358,1765449032396,-250.0,0.00015993,2]
[398241360,1765449032406,-195.0,0.00015999,2]
[398241362,1765449032416,-14.63382048,0.00016011,2]
[398241364,1765449032428,-285.36617952,0.00016011,2]
[398241366,1765449032437,-195.0,0.00016011,2]
[398241368,1765449032446,-64.98397946,0.00016013,2]
[398241370,1765449032461,-513.22526362,0.00016013,2]
[398241372,1765449032470,-1200.0,0.00016199,2]
[398241373,1765449032480,-300.0,0.00016199,2]
[398241374,1765449032489,-300.0,0.00016199,2]
[398241377,1765449032499,-1200.0,0.00016199,2]
[398241379,1765449032508,-5048.44120504,0.000162,5]
[398241381,1765449032519,-3839.82366599,0.000162,5]
[398241383,1765449032530,-221.56818859,0.0001625,2]
[398241385,1765449032539,-1811.0,0.00016287,2]
[398241387,1765449032548,-189.0,0.00016287,2]
[398241389,1765449032557,-300.0,0.00016287,2]
[398241391,1765449032566,-152.4,0.00016297,2]
[398241393,1765449032577,-152.74,0.00016297,2]
[398241395,1765449032586,-151.82,0.00016298,2]
[398241396,1765449032597,-151.97,0.00016298,2]
[398241397,1765449032606,-151.2,0.00016298,2]
[398241398,1765449032616,-371.46259864,0.0001643,2]
[398241399,1765449032625,-3015.24000971,0.0001649,2]
[398241400,1765449032635,-231.0,0.00016506,2]
[398241401,1765449032644,-196.0,0.00016506,2]
[398241402,1765449032654,-354.0,0.00016511,2]
[398241403,1765449032664,-248.0612103,0.00016528,2]
[398241404,1765449032688,-43.9387897,0.00016528,2]
[398241405,1765449032698,-500.0,0.00016529,2]
[398241406,1765449032708,-440.77741858,0.00016529,2]
[398241407,1765449032717,-500.0,0.00016529,2]
[398241408,1765449032726,-502.64925193,0.00016529,2]
[398241409,1765449032736,-500.0,0.00016529,2]
[398241410,1765449032746,-288.25193141,0.00016529,2]
[398241411,1765449032755,-265.22315895,0.00016529,2]
[398241412,1765449032767,-152.35478075,0.00016529,2]
[398241413,1765449032776,-500.0,0.00016529,2]
[398241414,1765449032786,-500.0,0.00016529,2]
[398241415,1765449032796,-500.0,0.00016529,2]
[398241416,1765449032805,-511.64667564,0.00016529,2]
[398241417,1765449032814,-500.0,0.00016529,2]
[398241418,1765449032823,-500.0,0.00016529,2]
[398241419,1765449032833,-292.34169953,0.00016529,2]
[398241420,1765449032843,-500.0,0.00016529,2]
[398241421,1765449032853,-500.0,0.00016529,2]
[398241422,1765449032862,-500.0,0.00016529,2]
[398241423,1765449032873,-500.0,0.00016529,2]
[398241424,1765449032882,-276.63422126,0.00016529,2]
[398241425,1765449032893,-500.0,0.00016529,2]
[398241426,1765449032903,-500.0,0.00016529,2]
[398241427,1765449032912,-500.0,0.00016529,2]
[398241428,1765449032921,-500.0,0.00016529,2]
[398241429,1765449032931,-500.0,0.00016529,2]
[398241430,1765449032940,-500.0,0.00016529,2]
[398241431,1765449032950,-500.0,0.00016529,2]
[398241432,1765449032959,-500.0,0.00016529,2]
[398241433,1765449032968,-500.0,0.00016529,2]
[398241434,1765449032978,-500.0,0.00016529,2]
[398241435,1765449032987,-500.0,0.00016529,2]
[398241436,1765449032996,-500.0,0.00016529,2]
[398241437,1765449033005,-500.0,0.00016529,2]
[398241438,1765449033014,-500.0,0.00016529,2]
[398241439,1765449033023,-500.0,0.00016529,2]
[398241440,1765449033032,-500.0,0.00016529,2]
[398241441,1765449033041,-500.0,0.00016529,2]
[398241442,1765449033051,-500.0,0.00016529,2]
[398241443,1765449033061,-500.0,0.00016529,2]
[398241444,1765449033070,-500.0,0.00016529,2]
[398241445,1765449033080,-500.0,0.00016529,2]
[398241446,1765449033089,-500.0,0.00016529,2]
[398241447,1765449033099,-500.0,0.00016529,2]
[398241448,1765449033109,-500.0,0.00016529,2]
[398241449,1765449033119,-500.0,0.00016529,2]
[398241450,1765449033129,-500.0,0.00016529,2]
[398241451,1765449033139,-500.0,0.00016529,2]
[398241452,1765449033148,-500.0,0.00016529,2]
[398241453,1765449033157,-500.0,0.00016529,2]
[398241454,1765449033167,-368.7489042,0.00016529,2]
[398241455,1765449033179,-131.2510958,0.00016529,2]
[398241456,1765449033188,-500.0,0.00016529,2]
[398241457,1765449033198,-500.0,0.00016529,2]
[398241458,1765449033207,-500.0,0.00016529,2]
[398241459,1765449033217,-500.0,0.00016529,2]
[398241460,1765449033225,-450.0,0.00016529,2]
[398241461,1765449033235,-28.3087826,0.00016529,2]
[398241462,1765449033246,-287.06431718,0.00016529,2]
[398241463,1765449033257,-184.62690022,0.00016529,2]
[398241464,1765449033267,-500.0,0.00016529,2]
[398241465,1765449033277,-233.07487189,0.00016529,2]
[398241467,1765449038226,-266.92512811,0.00016529,2]
[398241468,1765449038236,-500.0,0.00016529,2]
[398241469,1765449038245,-454.34233548,0.00016529,2]
[398241470,1765449038387,-45.65766452,0.00016529,2]
[398241471,1765449038397,-312.67718712,0.00016529,2]
[398241472,1765449038408,-187.32281288,0.00016529,2]
[398241473,1765449038418,-301.34148903,0.00016529,2]
[398241474,1765449038430,-198.65851097,0.00016529,2]
[398241475,1765449038439,-500.0,0.00016529,2]
[398241476,1765449038448,-500.0,0.00016529,2]
[398241477,1765449038458,-500.0,0.00016529,2]
[398241478,1765449038467,-354.99107885,0.00016529,2]
[398241480,1765449038479,-145.00892115,0.00016529,2]
[398241482,1765449038488,-500.0,0.00016529,2]
[398241483,1765449038498,-617.74280334,0.0001653,2]
[398241484,1765449038508,-806.39369733,0.0001653,2]
[398241485,1765449038519,-193.60630267,0.0001653,2]
[398241486,1765449038529,-60.57413539,0.0001653,2]
[398241487,1765449038541,-1513.88525483,0.0001653,2]
[398241491,1765449040341,-588.5642233,0.0001653,2]
[398241492,1765449040442,-853.45638648,0.0001653,2]
[398241493,1765449040451,-30977.53383144,0.0001653,2]
[398241494,1765449040480,-258.6914863,0.0001653,2]
[398241495,1765449040490,-610.27919149,0.0001653,2]
[398241496,1765449040556,-2993.80498,0.0001653,2]
[398241507,1765449043255,-1888.0,0.0001653,2]
[398241508,1765449043368,-725.3487061,0.0001653,2]
[398241509,1765449043530,-353400.34820846,0.0001653,2]
[398241515,1765449046211,-1203.57354655,0.0001653,2]
[398241516,1765449046269,-7952.77,0.0001653,2]
[398241517,1765449046427,-1115.8401823,0.0001653,2]
[398241518,1765449046438,-303.8,0.0001653,2]
[398241519,1765449046449,-522.02000001,0.0001653,2]
[398241524,1765449222884,150.0,0.00015609,2]
[398241525,1765449280928,3614.7,0.00015593,2]
[398241526,1765449478019,386.72,0.00015533,2]
[398241527,1765449481778,250.0,0.0001591,2]
[398241528,1765449578286,9363.29,0.00015,10]
[398241529,1765449578310,636.71,0.00015,10]
[398241530,1765449588952,10000.0,0.00015,10]
[398241531,1765449596777,0.01,0.00015,10]
[398241532,1765449596798,9999.99,0.00015,10]
[398241533,1765449609697,0.02,0.00015,10]
[398241534,1765449609721,9999.98,0.00015,10]
[398241536,1765449618990,0.03,7.716e-05,2]
[398241537,1765449619014,3059.78,7.716e-05,2]
[398241538,1765449619189,3059.81,8.122e-05,2]
[398241539,1765449619394,3059.81,8.528e-05,2]
[398241540,1765449619577,820.61,8.934e-05,2]
[398241541,1765449619601,2239.2,8.934e-05,2]
[398241542,1765449619760,3059.81,9.34e-05,2]
[398241543,1765449619947,3059.81,9.746e-05,2]
[398241544,1765449620139,1641.19,0.00010152,2]
[398241545,1765449620162,1418.62,0.00010152,2]
[398241546,1765449620352,3059.81,0.00010558,2]
[398241547,1765449620553,3059.81,0.00010964,2]
[398241548,1765449620758,2461.77,0.0001137,2]
[398241549,1765449620782,598.04,0.0001137,2]
[398241550,1765449620929,3059.81,0.00011777,2]
[398241551,1765449621446,3059.81,0.00012183,2]
[398241552,1765449621510,3059.81,0.00012589,2]
[398241553,1765449621565,222.54,0.00012995,2]
[398241554,1765449621589,2837.27,0.00012995,2]
[398241555,1765449621700,3059.81,0.00013401,2]
[398241556,1765449621901,3059.81,0.00013807,2]
[398241557,1765449622110,1043.12,0.00014213,2]
[398241558,1765449622132,2016.69,0.00014213,2]
[398241559,1765449622501,3059.81,0.00014619,2]
[398241560,1765449622548,3059.81,0.00015025,2]
[398241561,1765449622916,1863.7,0.00015431,2]
[398241562,1765449622939,1196.11,0.00015431,2]
[398241563,1765449682028,6983.98,0.00015433,2]
[398241565,1765449684091,1819.92,0.0001137,2]
[398241566,1765449684118,5728.12816564,0.0001137,2]
[398241567,1765449684153,375.16883083,0.0001137,2]
[398241568,1765449684185,3896.71300353,0.0001137,2]
[398241569,1765449684210,1009.13548216,0.0001137,2]
[398241570,1765449684502,500.0,0.0001137,2]
[398241571,1765449811495,5524.0,0.000143,5]
[398241572,1765449811720,2966.87451784,0.000136,3]
[398241573,1765449811743,2557.12548216,0.000136,3]
[398241574,1765449811940,2804.0,0.00013,2]
[398241575,1765449841080,166.66,0.00014603,2]
[398241576,1765449841277,166.66,0.00014911,2]
[398241577,1765449845233,166.66,0.00015218,2]
[398241578,1765449845740,166.66,0.00015525,2]
[398241579,1765449845972,166.66,0.00015833,2]
[398241580,1765449848083,3805.58451784,0.00015372,2]
[398241581,1765449848109,6754.15548216,0.00015372,2]
[398241582,1765449861360,397.57367306,0.00015191,2]
[398241583,1765449907048,150.0,0.00015288,2]
[398241584,1765449907100,150.0,0.000155,2]
[398241585,1765449907150,150.0,0.00015712,2]
[398241586,1765449907630,150.0,0.00015288,2]
[398241587,1765449907698,150.0,0.00015712,2]
[398241588,1765449908028,150.0,0.00015288,2]
[398241589,1765449908096,150.0,0.000155,2]
[398241590,1765449908165,150.0,0.00015712,2]
[398241591,1765449912421,150.0,0.00015288,2]
[398241592,1765449912484,150.0,0.00015429,2]
[398241593,1765449912552,150.0,0.00015571,2]
[398241594,1765449912618,150.0,0.00015712,2]
[398241595,1765449912688,150.0,0.00015854,2]
[398241596,1765449914782,150.0,0.00015288,2]
[398241597,1765449914847,150.0,0.000155,2]
[398241598,1765449914918,150.0,0.00015712,2]
[398241599,1765449915815,-150.0,0.00015925,2]
[398241600,1765449915837,-150.0,0.00015925,2]
[398241601,1765449915860,-6.53792602,0.00015925,2]
[398241602,1765449923203,-143.46207398,0.00015925,2]
[398241603,1765449923225,-195.0,0.00015942,2]
[398241604,1765449923246,-244.12862662,0.0001596,2]
[398241605,1765449923608,150.0,0.00015288,2]
[398241606,1765449923643,150.0,0.00015476,2]
[398241607,1765449923702,150.0,0.00015665,2]
[398241608,1765449923770,150.0,0.00015854,2]
[398241609,1765449924318,150.0,0.00015288,2]
[398241610,1765449928360,150.0,0.00015288,2]
[398241611,1765449931929,6302.43632694,0.00015329,2]
[398241612,1765449931956,7327.18367306,0.00015329,2]
[398241613,1765449935097,150.0,0.00015288,2]
[398241614,1765449974981,1218.46,0.00015318,2]
[398241618,1765450028161,175.63,0.00012246,2]
[398241619,1765450034382,415.364404,0.0001568,2]
[398241620,1765450056836,713.37192294,0.00015281,2]
[398241621,1765450056863,2037.62807706,0.00015281,2]
[398241622,1765450061370,200.0,0.00015277,2]
[398241623,1765450088723,-5.87137338,0.0001596,2]
[398241624,1765450088746,-158.68308584,0.00015978,2]
[398241625,1765450090602,-141.31691416,0.00015978,2]
[398241626,1765450090624,-131.35095777,0.00015995,2]
[398241627,1765450094267,-18.64904223,0.00015995,2]
[398241628,1765450094289,-183.04091629,0.00015996,2]
[398241629,1765450097496,-152.86,0.00015996,2]
[398241630,1765450100184,-184.64389081,0.00015996,2]
[398241631,1765450101789,-21.0901929,0.00015996,2]
[398241632,1765450101813,-294.26591629,0.00015996,2]
[398241633,1765450104838,-250.0,0.00015996,2]
[398241634,1765450140185,597.4,0.00015294,2]
[398241635,1765450141220,1000.0,0.00014999,3]
[398241636,1765450142518,-269.50847291,0.00015926,3]
[398241637,1765450144696,-421.32074569,0.00015926,3]
[398241638,1765450149860,-219.0,0.00015926,3]
[398241639,1765450151966,-90.1707814,0.00015926,3]
[398241640,1765450151987,-195.0,0.00015944,2]
[398241641,1765450152009,-39.89324023,0.00015961,2]
[398241642,1765450163062,-213.58822172,0.00015935,2]
[398241643,1765450165838,-86.41177828,0.00015935,2]
[398241644,1765450165861,-135.58144746,0.00015958,2]
[398241645,1765450178234,-164.41855254,0.00015958,2]
[398241646,1765450178257,-7.21471147,0.00015961,2]
[398241647,1765450182315,500.0,0.0001586,2]
[398241648,1765450192940,3403.57,0.00015288,2]
[398241662,1765450231534,-252.8920483,0.00015961,2]
[398241663,1765450231544,-414.60958609,0.00015967,2]
[398241664,1765450231554,-195.0,0.00015973,2]
[398241665,1765450231564,-300.0,0.00015987,2]
[398241666,1765450231573,-300.0,0.00015987,2]
[398241667,1765450231584,-200.0,0.00015996,2]
[398241668,1765450231594,-33.94332679,0.00015996,2]
[398241669,1765450231606,-150.0,0.00016043,2]
[398241670,1765450231617,-1129.30340421,0.00016064,2]
[398241671,1765450231627,-1200.0,0.00016136,2]
[398241672,1765450231637,-1200.0,0.00016136,2]
[398241673,1765450231647,-150.0,0.00016137,2]
[398241674,1765450231658,-150.0,0.00016137,2]
[398241675,1765450231668,-150.0,0.00016137,2]
[398241676,1765450231677,-150.0,0.00016137,2]
[398241677,1765450231690,-150.0,0.00016137,2]
[398241680,1765450231699,-150.0,0.00016137,2]
[398241682,1765450231709,-300.0,0.00016139,2]
[398241684,1765450231718,-300.0,0.00016139,2]
[398241685,1765450231727,-166.66,0.0001614,2]
[398241687,1765450231737,-200.0,0.00016156,2]
[398241689,1765450231746,-1811.0,0.00016185,2]
[398241691,1765450231755,-300.0,0.00016185,2]
[398241693,1765450231764,-550.0,0.00016199,2]
[398241695,1765450231774,-1000.0,0.00016199,3]
[398241697,1765450231783,-8121.89593369,0.000162,2]
[398241701,1765450237415,-3275.40696767,0.000162,2]
[398241702,1765450237520,-1498.8064333,0.000162,2]
[398241703,1765450237529,-17252.42993008,0.000162,2]
[398241704,1765450237538,-150.0,0.00016231,2]
[398241705,1765450237548,-223.28073538,0.00016254,2]
[398241706,1765450237558,-150.0,0.00016279,2]
[398241707,1765450237567,-150.1,0.00016291,2]
[398241708,1765450237577,-1622.0,0.00016295,2]
[398241709,1765450237587,-175.0,0.00016295,2]
[398241710,1765450237597,-151.0,0.00016296,2]
[398241711,1765450237611,-1000.0,0.00016297,2]
[398241712,1765450237619,-151.0,0.00016297,2]
[398241713,1765450237629,-500.0,0.00016299,2]
[398241714,1765450237638,-389.39661072,0.00016299,2]
[398241715,1765450237647,-584.14923308,0.00016299,2]
[398241716,1765450237656,-500.0,0.00016299,2]
[398241717,1765450237665,-500.0,0.00016299,2]
[398241718,1765450237674,-549.06923826,0.00016299,2]
[398241719,1765450237683,-500.0,0.00016299,2]
[398241720,1765450237691,-500.0,0.00016299,2]
[398241721,1765450237701,-500.0,0.00016299,2]
[398241722,1765450237709,-415.23775483,0.00016299,2]
[398241723,1765450237719,-500.0,0.00016299,2]
[398241724,1765450237728,-502.06697146,0.00016299,2]
[398241725,1765450237737,-500.0,0.00016299,2]
[398241726,1765450237747,-500.0,0.00016299,2]
[398241727,1765450237757,-500.0,0.00016299,2]
[398241728,1765450237768,-271.87338933,0.00016299,2]
[398241729,1765450237778,-229.69690144,0.00016299,2]
[398241730,1765450237788,-341.70995425,0.00016299,2]
[398241731,1765450237798,-500.0,0.00016299,2]
[398241732,1765450237807,-500.0,0.00016299,2]
[398241733,1765450237817,-500.0,0.00016299,2]
[398241734,1765450237826,-500.0,0.00016299,2]
[398241735,1765450237834,-500.0,0.00016299,2]
[398241736,1765450237843,-500.0,0.00016299,2]
[398241737,1765450237853,-500.0,0.00016299,2]
[398241738,1765450237861,-500.0,0.00016299,2]
[398241739,1765450237870,-500.0,0.00016299,2]
[398241740,1765450237879,-500.0,0.00016299,2]
[398241741,1765450237888,-500.0,0.00016299,2]
[398241742,1765450237897,-500.0,0.00016299,2]
[398241743,1765450237906,-500.0,0.00016299,2]
[398241744,1765450237914,-500.0,0.00016299,2]